bitfinex-derivatives/quotes_ETHF0:USTF0_20260102
["timestamp","ask_amount","ask_price","bid_price","bid_amount"]
[1767370979686,0.16101,3107.7,3106.2,0.92864832]
[1767370980096,0.16101,3107.6,3106.2,0.92864832]
[1767370980298,0.16103,3107.3,3106.2,0.92864832]
[1767370980800,10.772,3108.5,3106.2,0.92864832]
[1767370981002,0.16103,3107.3,3106.2,0.92864832]
[1767370981696,0.161,3107.9,3106.2,0.92864832]
[1767370982002,3.221,3108.4,3106.2,0.92864832]
[1767370982292,0.93825895,3108.3,3106.2,0.92864832]
[1767370982492,0.93825895,3108.2,3106.2,0.92864832]
[1767370982696,0.16101,3107.7,3106.2,0.92864832]
[1767370983400,0.16101,3107.7,3106.2,0.90704832]
[1767370983596,40.8,3109.0,3106.1,0.0048338]
[1767370983797,0.16097,3108.5,3106.5,0.16107]
[1767370983993,0.16097,3108.5,3107.2,0.00482594]
[1767370985398,0.16094,3109.1,3107.3,0.95126383]
[1767370985593,1.10233031,3109.0,3107.3,0.95381482]
[1767370985802,0.16094,3109.0,3107.3,0.95381482]
[1767370987398,0.38171789,3109.8,3107.3,0.95381482]
[1767370987597,0.38171789,3109.6,3107.3,0.95381482]
[1767370987795,0.161,3107.9,3107.2,0.00482594]
[1767370988195,0.161,3107.9,3107.2,0.95608977]
[1767370988400,0.16096,3108.6,3107.2,0.95608977]
[1767370988606,1.10228117,3108.5,3107.2,0.95608977]
[1767370988809,1.10228117,3108.4,3107.2,0.95924839]
[1767370989005,0.16097,3108.4,3107.2,0.95924839]
[1767370989203,0.94131978,3108.3,3107.2,0.00798456]
[1767370989398,0.94131978,3108.2,3107.2,0.00798456]
[1767370989599,0.00255099,3108.5,3107.2,0.00798456]
[1767370989800,0.94133326,3108.4,3107.2,0.00798456]
[1767370990004,0.94133326,3108.3,3107.2,0.00798456]
[1767370990303,0.00255099,3108.5,3107.2,0.00798456]
[1767370990506,0.16099,3108.0,3107.2,0.00798456]
[1767370991505,0.161,3107.9,3107.2,0.00798456]
[1767370991700,0.00255099,3108.5,3106.5,0.95126383]
[1767370991701,0.161,3107.8,3106.5,0.95126383]
[1767370992802,0.00482594,3107.5,3106.8,0.00482594]
[1767370994203,0.161,3107.8,3106.8,0.95608977]
[1767370995011,0.00255099,3108.5,3106.8,0.95608977]
[1767370995012,0.16101,3107.7,3106.8,0.00482594]
[1767370996117,0.16101,3107.6,3106.8,0.00482594]
[1767370996402,4.323,3108.4,3106.8,0.00482594]
[1767370996403,0.16102,3107.5,3106.8,0.00482594]
[1767370996911,0.16104,3107.1,3106.5,0.00370587]
[1767370997111,0.16104,3107.0,3105.8,0.95126383]
[1767370997906,0.00482594,3106.7,3106.1,0.00482594]
[1767370998112,0.00482594,3106.7,3106.1,0.00880941]
[1767370998609,0.16107,3106.5,3105.3,0.95126383]
[1767370999515,0.16108,3106.3,3105.3,0.95400304]
[1767370999817,0.16108,3106.2,3105.3,0.95400304]
[1767371000607,0.16108,3106.2,3105.4,0.00482594]
[1767371000812,0.00404396,3106.3,3105.4,0.95608977]
[1767371001211,0.00482594,3106.7,3105.4,0.95608977]
[1767371002317,0.00829694,3106.7,3105.4,0.95608977]
[1767371002714,0.00829694,3106.7,3104.9,0.95126383]
[1767371003315,0.16108,3106.3,3104.9,0.95126383]
[1767371003821,0.00829694,3106.7,3104.9,0.95437537]
[1767371004011,0.00829694,3106.7,3105.4,0.95126383]
[1767371004418,0.16935694,3106.7,3105.4,0.95126383]
[1767371004620,0.16106,3106.6,3105.4,0.95126383]
[1767371004812,0.16108,3106.2,3105.3,0.00482594]
[1767371007710,0.16108,3106.2,3105.3,0.97108884]
[1767371008210,0.16108,3106.2,3105.3,0.00482594]
[1767371009113,0.1611,3105.8,3105.3,0.00482594]
[1767371009317,1.01964052,3106.7,3104.9,0.00311154]
[1767371009514,0.1611,3105.9,3104.9,0.00311154]
[1767371009814,0.1611,3105.8,3104.9,0.00311154]
[1767371010016,1.01964052,3106.7,3104.9,0.96937444]
[1767371010316,0.00829694,3106.7,3105.5,0.00482594]
[1767371010518,0.16108,3106.3,3105.5,0.00482594]
[1767371011214,0.16109,3106.1,3104.9,0.00311154]
[1767371011718,0.1611,3105.9,3104.9,0.00311154]
[1767371012119,0.1611,3105.9,3105.1,0.00294433]
[1767371012319,1.01134358,3106.6,3105.1,0.00294433]
[1767371012320,0.16111,3105.8,3105.1,0.00294433]
[1767371012621,0.16113,3105.4,3103.9,0.9662629]
[1767371012820,0.16113,3105.3,3103.9,0.9662629]
[1767371013614,0.16597594,3104.9,3103.9,0.00309667]
[1767371015017,0.00482594,3104.9,3103.9,0.00309667]
[1767371015619,0.16116,3104.8,3103.9,0.00309667]
[1767371015819,0.00482594,3104.9,3103.9,0.00309667]
[1767371016030,0.00482594,3104.9,3103.1,0.9662629]
[1767371016326,0.00482594,3104.9,3102.2,0.9662629]
[1767371016327,0.16118,3104.3,3102.2,0.9662629]
[1767371017017,0.16507641,3104.3,3102.2,1.13085624]
[1767371017219,0.00389641,3104.3,3102.4,1.1275429]
[1767371018319,0.00389641,3104.3,3102.8,0.9662629]
[1767371018723,0.00389641,3104.3,3102.8,1.1275229]
[1767371020131,0.00389641,3104.3,3102.8,0.9662629]
[1767371023621,0.00482594,3104.9,3103.3,0.9662629]
[1767371023822,0.00482594,3104.9,3103.3,1.1274929]
[1767371024735,0.00799414,3104.9,3103.3,1.1274929]
[1767371025133,0.00799414,3104.9,3103.3,0.9662629]
[1767371025543,0.16117,3104.6,3103.3,0.9662629]
[1767371028734,0.16119,3104.2,3102.7,0.9662629]
[1767371030141,0.16117,3104.6,3102.7,1.1275229]
[1767371030347,0.16117,3104.5,3102.7,1.1275229]
[1767371030952,0.16117,3104.5,3102.9,0.9662629]
[1767371031834,0.16117,3104.5,3102.9,1.1275129]
[1767371032641,0.00799414,3104.9,3103.0,0.16125]
[1767371032946,0.00799414,3104.9,3103.1,0.9662629]
[1767371034346,0.00799414,3104.9,3103.4,0.9662629]
[1767371034939,0.00799414,3104.9,3103.5,0.16122]
[1767371035144,0.00799414,3104.9,3103.6,0.9662629]
[1767371035845,0.322,3104.8,3103.6,0.9662629]
[1767371040243,0.00799414,3104.9,3103.6,0.9662629]
[1767371040447,0.95989769,3106.8,3104.5,0.97675864]
[1767371040648,0.16109,3106.2,3104.5,0.97675864]
[1767371040849,0.1611,3105.9,3104.2,4.435]
[1767371041144,1.10300903,3105.8,3103.6,0.97675864]
[1767371041343,1.10300903,3105.8,3103.8,0.97675864]
[1767371041344,1.10300903,3105.7,3103.8,0.97675864]
[1767371041544,0.00482594,3105.0,3104.4,0.00482594]
[1767371044056,0.00482594,3105.0,3103.8,0.95588458]
[1767371046053,0.16112,3105.5,3103.8,0.95588458]
[1767371047057,0.00482594,3105.0,3104.3,0.00482594]
[1767371052764,0.00316266,3105.8,3104.3,0.98158458]
[1767371053561,0.00482594,3105.4,3104.3,0.98158458]
[1767371055866,0.00316266,3105.8,3104.3,2.37638199]
[1767371056065,0.00316266,3105.8,3104.6,0.97675864]
[1767371056669,0.16108,3106.3,3104.6,1.13791864]
[1767371056876,0.16105,3106.8,3104.9,0.97675864]
[1767371057167,0.16105,3106.8,3104.9,1.13790864]
[1767371057365,0.16106,3106.7,3105.0,5.40875864]
[1767371057569,0.16106,3106.6,3105.0,5.40875864]
[1767371057766,0.16349802,3106.6,3105.0,5.40875864]
[1767371057970,0.00482594,3106.1,3105.1,0.97675864]
[1767371059066,0.00243802,3106.6,3105.2,0.16113]
[1767371059372,0.00243802,3106.6,3105.3,0.97675864]
[1767371060073,0.00482594,3106.3,3105.3,0.97675864]
[1767371060370,0.16103,3107.2,3105.5,0.97675864]
[1767371061162,0.16103,3107.2,3106.0,0.98158458]
[1767371061361,0.16437863,3107.2,3106.0,0.98522402]
[1767371062766,0.16104,3107.1,3106.0,0.00846538]
[1767371063172,0.16105,3106.9,3106.0,0.00846538]
[1767371063779,0.16106,3106.7,3106.0,0.00846538]
[1767371066377,0.16106,3106.6,3105.0,0.97675864]
[1767371066777,1.0206384,3106.7,3105.0,0.97675864]
[1767371067082,0.16108,3106.4,3105.0,0.97675864]
[1767371067282,0.16108,3106.4,3104.6,4.43]
[1767371067470,0.00482594,3105.8,3105.2,0.00482594]
[1767371068481,0.16108,3106.3,3105.2,0.95462778]
[1767371068982,0.16108,3106.3,3105.2,0.00482594]
[1767371070177,0.16108,3106.3,3105.2,0.95462778]
[1767371070779,0.16105,3107.0,3105.2,0.95462778]
[1767371070985,0.16105,3106.8,3105.2,0.95462778]
[1767371071679,0.00334863,3107.2,3105.2,0.95462778]
[1767371071876,0.00334863,3107.2,3105.4,0.94980184]
[1767371072884,0.00334863,3107.2,3105.6,0.94980184]
[1767371075181,0.00334863,3107.2,3105.8,1.11090184]
[1767371075385,0.161,3107.9,3106.0,0.94980184]
[1767371076188,0.161,3107.8,3106.0,0.94980184]
[1767371076488,0.161,3107.8,3106.6,0.00482594]
[1767371078390,0.16101,3107.6,3106.6,0.00482594]
[1767371080392,0.16102,3107.4,3106.6,0.00482594]
[1767371082603,0.00278137,3107.9,3106.6,0.00482594]
[1767371083205,0.00278137,3107.9,3106.6,0.95462778]
[1767371083502,0.16095,3108.8,3107.0,0.94980184]
[1767371084091,0.16095,3108.8,3107.2,0.94980184]
[1767371084296,0.00314656,3108.8,3107.4,0.94980184]
[1767371084698,0.00314656,3108.8,3107.4,5.37780184]
[1767371084892,0.00314656,3108.8,3107.4,0.94980184]
[1767371085105,0.00314656,3108.8,3107.4,5.37780184]
[1767371085502,0.00314656,3108.8,3107.5,0.94980184]
[1767371086293,1.02319287,3110.1,3107.9,0.94980184]
[1767371086496,0.16091,3109.5,3108.7,0.00482594]
[1767371087996,1.02319287,3110.5,3108.7,0.00482594]
[1767371088299,1.02319287,3109.6,3107.3,0.94980184]
[1767371088507,0.16092,3109.4,3107.4,0.94980184]
[1767371088801,0.16092,3109.4,3107.6,0.94980184]
[1767371089106,1.18407287,3110.1,3107.8,0.94980184]
[1767371089302,0.00482594,3109.3,3108.6,0.00482594]
[1767371090595,0.00482594,3109.3,3107.5,2.63780184]
[1767371090798,0.00482594,3109.3,3107.5,0.94980184]
[1767371090799,0.16574594,3109.3,3107.5,0.94980184]
[1767371090999,0.00482594,3109.3,3107.5,0.94980184]
[1767371091401,0.16094,3109.1,3107.5,0.94980184]
[1767371091607,0.16094,3109.1,3108.0,0.00482594]
[1767371091994,0.00482594,3109.3,3108.0,0.00482594]
[1767371092205,0.00482594,3109.3,3108.0,0.95462778]
[1767371092402,0.00482594,3109.3,3108.0,1.11561778]
[1767371092603,0.16088,3110.1,3108.0,1.11561778]
[1767371092904,0.16088,3110.1,3108.2,0.94980184]
[1767371093610,0.16574594,3109.5,3108.0,0.00482594]
[1767371093802,0.16093,3109.2,3108.0,0.00482594]
[1767371094007,0.16093,3109.1,3108.0,0.00482594]
[1767371094707,0.00482594,3109.5,3108.0,0.00482594]
[1767371094708,0.16094,3109.0,3108.0,0.00482594]
[1767371096609,0.16096,3108.7,3107.2,0.00241376]
[1767371096906,0.16098,3108.2,3107.2,0.00241376]
[1767371097307,1.02289362,3108.5,3107.2,0.00241376]
[1767371097506,0.161,3107.9,3106.0,1.03693986]
[1767371097711,0.00482594,3107.3,3106.6,0.00482594]
[1767371098510,0.00482594,3107.3,3106.6,0.00794412]
[1767371101416,0.00482594,3107.3,3105.4,1.03693986]
[1767371101612,1.02771956,3107.3,3105.4,1.03693986]
[1767371101916,0.16104,3107.1,3105.4,1.03693986]
[1767371102515,0.16104,3107.1,3105.9,0.00482594]
[1767371102916,0.16104,3107.0,3105.9,0.00482594]
[1767371103112,0.16105,3106.8,3105.9,0.00482594]
[1767371103915,0.00482594,3107.3,3105.9,0.00482594]
[1767371104114,0.00482594,3107.3,3105.9,1.0417658]
[1767371105017,0.00482594,3107.3,3105.9,0.00482594]
[1767371106322,0.16105,3107.0,3105.9,0.00482594]
[1767371106521,1.02771956,3107.3,3105.9,0.00482594]
[1767371106816,0.16106,3106.7,3105.9,0.00482594]
[1767371107718,0.16106,3106.6,3105.4,0.00242882]
[1767371108124,0.16107,3106.5,3105.4,0.00242882]
[1767371108526,0.16107,3106.5,3105.4,0.00042882]
[1767371108824,0.16107,3106.5,3105.6,0.00482594]
[1767371109021,0.16108,3106.3,3105.6,0.00482594]
[1767371109225,1.02289362,3106.7,3104.4,1.03693986]
[1767371109522,0.1611,3106.0,3104.4,1.03693986]
[1767371109723,1.39359179,3107.1,3104.1,3.22]
[1767371109724,0.16111,3105.8,3104.1,3.22]
[1767371110117,0.00482594,3105.3,3104.6,0.00482594]
[1767371110315,0.00884641,3105.3,3104.6,0.00740348]
[1767371114026,0.00884641,3105.3,3104.1,2.92740348]
[1767371114627,0.00884641,3105.3,3103.7,4.424]
[1767371114828,0.00884641,3105.3,3103.7,1.03693986]
[1767371114829,0.16997641,3105.3,3103.7,1.03693986]
[1767371115030,1.03174003,3105.3,3104.2,0.00321732]
[1767371115730,1.03174003,3105.3,3103.7,0.00284316]
[1767371115731,0.16115,3104.9,3103.7,0.00284316]
[1767371116227,0.16015,3104.9,3103.7,0.00284316]
[1767371116427,0.00884641,3105.3,3103.7,1.03978302]
[1767371117130,0.16997641,3105.3,3103.7,1.03978302]
[1767371117837,0.16115,3105.0,3103.7,1.03978302]
[1767371118040,0.16115,3105.0,3103.7,0.00284316]
[1767371118227,0.16116,3104.8,3103.7,0.00284316]
[1767371119526,0.16116,3104.7,3103.7,0.00284316]
[1767371120337,0.16118,3104.4,3103.7,0.00284316]
[1767371120733,0.16119,3104.2,3102.7,1.03693986]
[1767371121731,0.145,3104.9,3102.7,1.20213775]
[1767371121926,0.16119,3104.2,3102.7,1.04087775]
[1767371122131,1.02289362,3104.7,3102.7,1.04087775]
[1767371122638,0.16123,3103.5,3102.7,0.00393789]
[1767371122834,0.00483387,3103.4,3102.7,0.00393789]
[1767371123134,0.16606387,3103.4,3102.7,0.00393789]
[1767371123341,0.16606387,3103.4,3102.5,0.53172777]
[1767371124036,0.16123,3103.3,3102.5,0.53172777]
[1767371124348,0.16123,3103.3,3102.5,0.53471809]
[1767371125238,0.00483387,3103.4,3102.5,0.53471809]
[1767371125636,0.00383387,3103.4,3102.6,0.00102644]
[1767371127146,0.00383387,3103.4,3102.6,1.04451906]
[1767371128335,0.00383387,3103.4,3102.6,0.00102644]
[1767371129438,0.16118,3104.3,3102.6,1.04451906]
[1767371129642,0.922364,3104.2,3102.6,1.04451906]
[1767371129841,0.922364,3104.1,3102.6,1.04451906]
[1767371130040,0.99950528,3104.6,3102.6,1.04451906]
[1767371130244,0.92248012,3104.5,3102.6,1.04451906]
[1767371130442,0.00483387,3103.9,3102.6,1.04451906]
[1767371130642,0.92248012,3103.8,3102.6,1.04451906]
[1767371132341,0.00483387,3103.9,3102.6,1.04451906]
[1767371132835,0.92518177,3103.8,3102.6,1.04451906]
[1767371133031,0.00483387,3103.9,3102.6,1.04451906]
[1767371133231,0.92532695,3103.8,3102.6,1.04451906]
[1767371133442,0.00483387,3103.9,3102.6,1.04451906]
[1767371133638,0.92532967,3103.8,3102.6,1.04451906]
[1767371133837,0.00483387,3103.9,3102.6,1.04451906]
[1767371134041,0.925329,3103.8,3102.7,0.16126]
[1767371134247,1.16066528,3104.7,3102.8,1.04349262]
[1767371134840,0.16117,3104.6,3102.9,0.16125]
[1767371135039,0.00402047,3105.3,3102.9,0.16125]
[1767371135040,1.16067528,3104.5,3102.9,0.16125]
[1767371135230,0.00483387,3104.0,3102.9,0.16125]
[1767371138438,0.00483387,3104.0,3102.6,0.00102644]
[1767371139244,1.00433915,3104.0,3102.6,0.00102644]
[1767371139447,1.16073528,3103.4,3102.6,0.00102644]
[1767371139638,1.00433915,3104.0,3102.6,0.00102644]
[1767371139844,1.16553915,3104.0,3102.6,0.00102644]
[1767371140040,0.1612,3103.9,3102.6,0.00102644]
[1767371140243,1.16070528,3103.9,3102.6,0.00102644]
[1767371140648,0.16121,3103.8,3102.6,0.00102644]
[1767371140843,1.16073528,3103.5,3102.6,0.00102644]
[1767371141041,1.16073528,3103.5,3102.5,0.53471809]
[1767371141241,1.16074528,3103.2,3101.7,4.426]
[1767371141446,1.16074528,3103.2,3101.4,0.16133]
[1767371141646,0.16126,3102.8,3101.2,1.04349262]
[1767371141847,0.16127,3102.7,3101.2,1.04349262]
[1767371142148,0.00483387,3102.3,3100.6,1.04349262]
[1767371142342,0.00831257,3102.3,3100.6,1.0474053]
[1767371142743,0.00831257,3102.3,3100.7,0.16137]
[1767371142945,0.00831257,3102.3,3100.8,1.04349262]
[1767371143145,0.00831257,3102.3,3101.2,0.00383387]
[1767371145146,1.00781785,3102.3,3101.2,0.00383387]
[1767371145842,0.1613,3102.1,3101.2,0.00383387]
[1767371146254,0.91867213,3102.0,3101.2,0.00383387]
[1767371146454,0.91867213,3101.9,3101.2,0.00383387]
[1767371146649,0.00831257,3102.3,3101.2,0.00383387]
[1767371146850,0.91871515,3102.2,3101.2,0.00383387]
[1767371147050,0.91871515,3102.1,3101.2,0.00383387]
[1767371147256,0.00831257,3102.3,3101.2,1.04732649]
[1767371147451,0.00831257,3102.3,3101.2,0.00383387]
[1767371152060,0.99950528,3103.0,3101.3,0.16134]
[1767371152559,0.99950528,3103.0,3101.4,0.16133]
[1767371153060,0.00483387,3102.5,3101.4,0.16133]
[1767371154650,0.00483387,3102.5,3101.2,0.00383387]
[1767371154855,0.99950528,3102.3,3101.2,0.00383387]
[1767371155157,0.00483387,3102.5,3101.2,0.00383387]
[1767371155158,0.99950528,3102.0,3101.2,0.00383387]
[1767371156968,1.15513636,3102.3,3101.2,0.00383387]
[1767371159165,0.1613,3102.1,3101.2,0.00383387]
[1767371159472,0.99384636,3102.0,3101.2,0.00383387]
[1767371159667,0.99384636,3102.0,3100.6,0.00391268]
[1767371159873,1.15516636,3101.6,3100.6,0.00391268]
[1767371160070,1.15518636,3101.3,3100.6,0.00391268]
[1767371160269,1.15518636,3101.3,3099.8,0.26934841]
[1767371160465,0.99384636,3101.8,3099.8,0.26934841]
[1767371160770,0.00483387,3101.1,3100.5,0.00483386]
[1767371161275,1.16003023,3101.1,3099.3,7.81044]
[1767371161473,0.16136,3100.9,3099.3,7.649]
[1767371161779,0.16137,3100.7,3099.3,7.649]
[1767371162078,0.99384636,3100.6,3098.9,0.16146]
[1767371162376,0.99774172,3100.6,3098.9,0.1647177]
[1767371162562,1.31634636,3100.5,3099.1,1.23434258]
[1767371162762,0.3225,3100.5,3099.1,1.23434258]
[1767371162973,0.3225,3100.5,3098.9,0.1647177]
[1767371163475,0.00389536,3100.6,3099.3,1.03654071]
[1767371163671,0.00483387,3101.1,3099.6,0.16142]
[1767371163873,0.00483387,3101.1,3099.7,1.23434258]
[1767371164170,0.00483387,3101.1,3099.6,0.16142]
[1767371164370,0.99868023,3101.1,3098.9,0.1647177]
[1767371164573,0.99384636,3100.8,3099.0,3.226]
[1767371164777,0.99675992,3100.8,3099.0,3.226]
[1767371165570,1.15812992,3100.8,3099.0,3.226]
[1767371166374,0.00291356,3100.8,3099.2,0.16145]
[1767371166569,0.99675992,3100.8,3099.2,0.16145]
[1767371166971,0.3223,3100.7,3099.2,0.16145]
[1767371167974,1.31614636,3100.7,3099.2,0.16145]
[1767371168579,1.31614636,3100.7,3098.9,0.0032577]
[1767371168781,0.99384636,3100.6,3098.9,0.0032577]
[1767371169084,1.15522636,3100.6,3098.9,0.0032577]
[1767371170274,0.99384636,3100.4,3098.9,0.0032577]
[1767371171079,0.3223,3100.7,3098.9,0.0032577]
[1767371171080,0.3223,3100.7,3099.0,0.16146]
[1767371171382,0.99384636,3100.6,3099.0,0.16146]
[1767371173982,0.99384636,3100.6,3098.9,0.0032577]
[1767371173983,0.3223,3100.7,3098.9,0.0032577]
[1767371174186,0.3223,3100.7,3099.4,0.16144]
[1767371174577,1.31614636,3100.7,3099.4,0.16144]
[1767371174881,0.99384636,3100.6,3098.9,0.0032577]
[1767371175073,1.15522636,3100.6,3098.9,0.0032577]
[1767371175986,0.99384636,3100.4,3098.9,0.0032577]
[1767371176185,1.15523636,3100.4,3098.9,0.0032577]
[1767371176575,0.99384636,3100.2,3098.9,0.0032577]
[1767371176979,0.99384636,3100.0,3098.9,0.0032577]
[1767371177980,0.99384636,3099.7,3097.7,3.227]
[1767371178187,0.00483387,3099.0,3097.7,3.227]
[1767371178987,0.99868023,3099.0,3097.7,3.23016542]
[1767371180077,0.99868023,3099.0,3097.7,0.00316542]
[1767371182990,0.00483387,3099.0,3097.7,0.00316542]
[1767371183190,0.00483387,3099.0,3097.9,0.16151]
[1767371183385,0.00483387,3099.0,3098.1,0.1615]
[1767371183593,0.00483387,3099.0,3097.7,1.237508]
[1767371183594,0.99384636,3100.0,3098.2,4.5875]
[1767371183896,0.99384636,3100.0,3098.3,0.16149]
[1767371184689,0.00483387,3099.5,3098.8,0.00483387]
[1767371184984,0.00291356,3100.8,3098.8,0.00483387]
[1767371184985,0.99384636,3100.5,3098.8,0.00483387]
[1767371185192,0.99384636,3100.5,3098.9,0.16146]
[1767371185387,0.00291356,3100.8,3098.9,4.11612108]
[1767371185593,0.00291356,3100.8,3099.1,0.16145]
[1767371185788,0.00291356,3100.8,3099.3,0.16144]
[1767371185988,0.00483387,3100.3,3099.3,0.16144]
[1767371186590,0.00291356,3100.8,3099.2,5.66034258]
[1767371186591,0.00291356,3100.8,3099.4,7.59385622]
[1767371186999,0.00291356,3100.8,3099.4,3.38944]
[1767371187603,0.00483387,3100.4,3099.4,3.38944]
[1767371189695,0.00483387,3100.4,3099.4,0.16144]
[1767371189887,0.00483387,3100.4,3099.5,4.428]
[1767371190291,0.00291356,3100.8,3099.6,0.16143]
[1767371190493,0.00291356,3100.8,3099.6,4.26937585]
[1767371190792,0.00291356,3100.8,3099.6,0.16143]
[1767371191189,1.02742207,3101.6,3099.7,5.51838778]
[1767371191591,1.02742207,3101.6,3099.7,1.23434258]
[1767371191796,0.3223,3101.5,3099.7,1.23434258]
[1767371192102,1.34972207,3101.5,3099.7,1.23434258]
[1767371192405,0.00483387,3100.9,3099.7,1.23434258]
[1767371192702,0.00483387,3100.9,3099.9,0.16141]
[1767371192902,0.00483387,3100.9,3099.9,0.16392777]
[1767371193800,1.35228487,3101.5,3099.9,0.16392777]
[1767371193999,0.3248628,3101.5,3100.1,0.1614]
[1767371194406,0.3248628,3101.5,3100.2,0.16139]
[1767371194601,0.3248628,3101.5,3100.3,4.429]
[1767371194908,0.00322261,3101.2,3100.6,0.00483387]
[1767371196212,0.3248628,3101.5,3100.6,0.00483387]
[1767371198107,1.02742207,3102.1,3100.6,0.00483387]
[1767371199010,1.0297666,3102.1,3100.6,0.00483387]
[1767371199206,1.0297666,3102.1,3100.7,4.428]
[1767371199410,1.0297666,3102.1,3100.6,0.00483387]
[1767371200008,1.0297666,3102.1,3100.7,4.123]
[1767371201706,1.0297666,3102.1,3100.7,4.28437]
[1767371202106,1.02742207,3102.6,3101.1,1.39569258]
[1767371202704,1.02742207,3102.6,3101.1,0.16135]
[1767371202904,1.02742207,3102.6,3100.6,0.00483387]
[1767371203108,1.02742207,3102.4,3100.7,7.654]
[1767371203507,1.02742207,3102.4,3100.6,0.00483387]
[1767371203720,1.02742207,3102.4,3100.7,4.428]
[1767371204221,1.02742207,3102.4,3100.6,0.00483387]
[1767371204415,1.02742207,3102.4,3100.7,4.428]
[1767371205121,1.02742207,3102.4,3100.6,0.00483387]
[1767371205421,1.02742207,3102.4,3100.7,3.286]
[1767371206014,1.02742207,3102.0,3100.7,3.286]
[1767371206213,1.18872207,3102.0,3100.7,3.286]
[1767371207618,1.18872207,3102.0,3100.6,0.00483387]
[1767371207813,1.02742207,3102.0,3100.6,0.00483387]
[1767371208017,1.02742207,3102.5,3100.8,1.39570258]
[1767371208210,1.02742207,3102.5,3100.9,0.16136]
[1767371208414,1.02742207,3102.5,3101.0,0.16135]
[1767371208615,1.02742207,3102.5,3101.1,4.58835]
[1767371209226,0.00367292,3102.6,3101.1,4.58835]
[1767371209921,1.02742207,3103.5,3101.8,1.23434258]
[1767371210120,1.02742207,3103.5,3102.3,0.00483387]
[1767371210918,1.0296956,3103.5,3102.3,0.00785352]
[1767371211120,1.02742207,3103.3,3101.0,0.16135]
[1767371211421,1.02742207,3102.6,3100.9,3.226]
[1767371211617,1.02742207,3102.6,3100.4,0.16138]
[1767371211618,1.02742207,3102.4,3100.6,4.427]
[1767371212222,1e-08,3101.8,3101.2,0.00483387]
[1767371212417,1.02742207,3103.0,3101.2,0.00483387]
[1767371212821,1.18867207,3103.0,3101.2,0.00483387]
[1767371213922,1.02742207,3103.0,3101.2,0.00483387]
[1767371214129,1.18868207,3102.8,3101.2,0.00483387]
[1767371214321,1.18869207,3102.6,3101.2,0.00483387]
[1767371216728,1.02742207,3102.6,3101.2,0.00483387]
[1767371222925,1.0307387,3103.2,3101.2,0.16617387]
[1767371223941,1.0307387,3103.2,3101.5,0.16133]
[1767371225134,1.0307387,3103.2,3101.2,1.03611296]
[1767371225338,0.00227353,3103.5,3101.9,0.1613]
[1767371225528,1.03301223,3103.5,3102.0,4.424]
[1767371226840,1.03301223,3103.5,3102.0,4.5853]
[1767371227840,1.03301223,3103.5,3102.2,0.16129]
[1767371228233,1.03301223,3103.5,3101.6,0.16132]
[1767371228439,1.03301223,3103.5,3101.7,4.425]
[1767371229035,1.0307387,3103.3,3101.0,0.16135]
[1767371229236,1.0307387,3103.3,3101.3,4.424]
[1767371229537,1.1919787,3103.3,3101.3,4.424]
[1767371229845,1.0307387,3103.1,3101.3,4.424]
[1767371232238,0.00227353,3103.5,3101.4,5.18602987]
[1767371232544,1.03301223,3103.5,3101.7,0.16132]
[1767371235848,1.0307387,3103.3,3101.2,0.00483387]
[1767371236144,1.0307387,3103.3,3101.3,4.424]
[1767371236651,1.0307387,3102.7,3101.2,0.00483387]
[1767371236849,1.0307387,3102.7,3101.2,4.42883387]
[1767371237351,1.0307387,3103.3,3101.2,4.42883387]
[1767371237944,1.0307387,3103.3,3101.6,0.16132]
[1767371238242,1.0307387,3103.3,3101.2,0.00483387]
[1767371238550,1.0307387,3102.7,3101.2,0.00483387]
[1767371239151,1.1920087,3102.7,3101.2,0.00483387]
[1767371240540,1.0307387,3102.5,3101.2,0.00483387]
[1767371243249,1.1920187,3102.5,3101.2,0.00483387]
[1767371243646,1.0307387,3102.5,3101.2,0.00483387]
[1767371244055,1.0307387,3102.5,3101.3,4.423]
[1767371245059,1.0307387,3103.0,3101.3,4.58434]
[1767371245264,1.0307387,3103.0,3101.3,4.423]
[1767371245552,1.19424223,3103.5,3101.4,4.27145614]
[1767371245752,1.19424223,3103.5,3101.4,5.35302152]
[1767371246662,1.19424223,3103.5,3101.7,0.16132]
[1767371246851,1.03301223,3103.5,3101.7,0.16132]
[1767371248169,1.03301223,3103.5,3101.8,7.649]
[1767371248476,1.03301223,3103.5,3101.9,4.424]
[1767371249069,1.03301223,3103.5,3101.7,0.16132]
[1767371249272,1.03301223,3103.5,3102.0,4.424]
[1767371249471,1.03301223,3103.5,3102.1,4.424]
[1767371251677,1.03301223,3103.5,3101.2,0.16617387]
[1767371251871,1.03301223,3103.5,3101.5,3.225]
[1767371252070,1.03301223,3103.5,3101.5,4.424]
[1767371252270,1.04545758,3103.1,3101.5,4.424]
[1767371253180,0.00227353,3103.5,3101.2,0.00483387]
[1767371253181,1.04545758,3102.9,3101.2,0.00483387]
[1767371253486,1.04545758,3101.9,3100.3,3.97394178]
[1767371253777,1.20676758,3101.9,3099.7,0.16142]
[1767371254278,0.16131,3101.8,3099.7,0.16142]
[1767371254578,1.04545758,3101.4,3099.7,0.16142]
[1767371255871,1.04545758,3101.4,3099.6,3.708]
[1767371256781,1.04545758,3101.4,3100.2,0.00483387]
[1767371256970,1.04545758,3101.4,3100.2,0.00769801]
[1767371258569,1.20678758,3101.4,3100.2,0.00769801]
[1767371260876,1.20745758,3101.3,3100.2,0.00769801]
[1767371261077,1.21017296,3101.3,3100.2,0.00769801]
[1767371262372,1.04545758,3100.8,3098.8,0.16147]
[1767371263067,1.20682758,3100.8,3098.8,0.16147]
[1767371263276,1.20682758,3100.8,3098.7,5.48042661]
[1767371263472,1.20682758,3100.8,3099.4,0.00483387]
[1767371263673,1.04545758,3100.8,3099.4,0.00483387]
[1767371264068,1.04545758,3101.2,3099.4,0.00483387]
[1767371264378,1.20680758,3101.2,3099.4,0.00483387]
[1767371264579,1.20680758,3101.0,3099.4,0.00483387]
[1767371265884,1.04545758,3101.0,3099.4,0.00483387]
[1767371266182,0.16471538,3101.3,3099.6,1.05642661]
[1767371266384,0.16471538,3101.3,3100.1,0.1614]
[1767371266570,0.16471538,3101.3,3100.2,4.424]
[1767371266775,0.00483387,3101.5,3100.6,0.16137]
[1767371266976,0.16126,3102.9,3100.6,0.16137]
[1767371266977,1.04545758,3102.8,3100.6,0.16137]
[1767371267776,1.04820562,3102.8,3100.6,0.16137]
[1767371267977,0.00483387,3102.0,3101.4,0.00483387]
[1767371268179,0.00483387,3102.0,3101.4,0.00811148]
[1767371269280,1.04545758,3102.4,3101.4,0.00811148]
[1767371269484,0.00274804,3102.8,3101.4,0.00811148]